bitfinex/quotes_ETHUSD_20250626
["timestamp","ask_amount","ask_price","bid_price","bid_amount"]
[1750973703698,0.93306007,2406.9,2406.4,0.005]
[1750973703879,3.18682589,2406.8,2406.4,0.005]
[1750973704085,4.65473707,2406.9,2406.4,0.005]
[1750973704086,2.75376582,2406.6,2406.4,0.005]
[1750973704269,4.03666194,2406.5,2406.4,0.005]
[1750973704468,4.03666194,2406.5,2405.0,1.94493571]
[1750973704469,0.5,2406.4,2405.3,3.953]
[1750973704699,2.34548614,2406.2,2405.0,1.94493571]
[1750973704910,0.5,2406.4,2405.0,1.18623571]
[1750973704911,4.15696707,2405.6,2405.0,1.18623571]
[1750973705208,4.15696707,2405.6,2403.7,10.0]
[1750973705209,0.763,2405.2,2403.7,10.0]
[1750973705509,2.34423037,2404.6,2403.8,10.0]
[1750973705669,0.93306007,2404.5,2403.7,10.0]
[1750973705869,2.34423037,2404.6,2403.6,10.0]
[1750973705870,0.93306007,2404.4,2403.6,10.0]
[1750973706115,0.93306007,2404.3,2403.5,0.7587]
[1750973706305,0.93306007,2404.2,2403.3,4.16094028]
[1750973706507,0.93306007,2404.1,2403.3,1.41609403]
[1750973706708,0.93306007,2404.0,2403.8,4.16007839]
[1750973706873,0.93306007,2403.9,2403.8,39.92432987]
[1750973707072,2.34423037,2404.6,2404.3,4.15908744]
[1750973707388,0.94030616,2404.5,2404.2,4.15938773]
[1750973707588,0.94030616,2404.4,2404.3,10.0]
[1750973707931,0.94030616,2404.4,2403.7,5.387742]
[1750973708104,0.94030616,2404.3,2403.9,10.0]
[1750973708417,0.94302601,2404.2,2403.9,10.0]
[1750973708631,0.94302601,2404.1,2403.9,6.876479]
[1750973708826,2.34423037,2404.7,2403.9,6.876479]
[1750973708827,0.5,2404.6,2404.0,10.0]
[1750973708992,0.94296777,2404.5,2403.9,4.15981503]
[1750973709327,2.90530062,2405.1,2403.9,4.15981503]
[1750973709328,0.94296777,2404.4,2403.9,4.15981503]
[1750973709492,0.94296777,2404.3,2403.9,4.15981503]
[1750973709692,0.94296777,2404.2,2404.0,4.15972665]
[1750973709915,0.94296777,2404.1,2404.0,4.15972665]
[1750973710293,2.34423037,2404.9,2404.3,10.0]
[1750973710493,2.34423037,2404.9,2404.2,4.15932566]
[1750973710688,2.34423037,2404.9,2404.1,10.0]
[1750973710689,0.21840172,2404.8,2404.1,10.0]
[1750973710888,2.34423037,2404.9,2404.2,12.9634]
[1750973711118,2.34423037,2405.0,2404.2,2.9634]
[1750973711323,2.34423037,2405.0,2404.1,5.8894]
[1750973711525,2.34423037,2405.0,2404.2,6.7755]
[1750973711740,2.34423037,2405.0,2404.0,4.15969052]
[1750973711887,2.34423037,2405.0,2404.2,17.51876404]
[1750973712086,2.34423037,2405.0,2404.3,10.0]
[1750973712294,2.34423037,2405.0,2404.2,4.15938773]
[1750973712589,2.34423037,2405.1,2404.1,4.15956075]
[1750973712792,2.34423037,2405.1,2404.2,4.15938773]
[1750973713002,0.763,2405.2,2404.1,0.83192583]
[1750973713003,2.34423037,2405.2,2404.6,4.15857936]
[1750973713205,2.34423037,2405.3,2404.5,4.15884303]
[1750973713537,0.5,2405.5,2404.4,4.15895242]
[1750973713538,0.5,2405.4,2404.4,4.15895242]
[1750973713750,0.5,2405.4,2404.1,0.7805]
[1750973713751,0.5,2405.4,2404.3,10.0]
[1750973713904,0.5,2405.4,2404.5,4.15876103]
[1750973714106,2.34423037,2405.7,2404.6,4.15866516]
[1750973714831,2.34423037,2405.8,2404.6,14.0111]
[1750973715020,0.5,2405.5,2404.7,4.1583719]
[1750973715222,0.5,2405.5,2404.9,4.15806603]
[1750973715411,1.2551,2405.9,2405.0,3.416]
[1750973715612,2.84423037,2406.3,2405.1,0.55]
[1750973715814,2.34423037,2406.6,2406.2,4.15585779]
[1750973716028,2.34423037,2406.7,2406.4,4.15547143]
[1750973716226,0.7551,2407.2,2406.4,4.15547143]
[1750973716227,2.34423037,2406.9,2406.6,22.35553975]
[1750973716532,0.5,2407.4,2406.4,0.83112754]
[1750973716737,0.5,2407.0,2406.1,4.15601342]
[1750973717032,0.5,2407.0,2406.0,10.0]
[1750973717232,0.5,2406.8,2405.9,3.995133]
[1750973717402,0.5,2406.5,2405.5,4.65707731]
[1750973717601,0.5,2406.5,2405.6,10.0]
[1750973717830,0.5,2406.4,2405.8,10.0]
[1750973718041,0.5,2406.4,2405.7,3.726227]
[1750973718199,0.5,2406.4,2405.1,13.728395]
[1750973718402,0.5,2406.1,2404.2,1.65284126]
[1750973718655,0.5,2405.9,2404.3,10.0]
[1750973718806,0.5,2405.7,2404.6,10.0]
[1750973719254,0.5,2405.7,2404.5,10.0]
[1750973719451,0.5,2405.6,2404.5,4.279074]
[1750973719615,4.15681403,2405.7,2404.5,10.0]
[1750973719804,0.5,2405.8,2404.3,10.0]
[1750973719805,0.5,2405.3,2404.3,10.0]
[1750973719999,0.5,2404.3,2403.2,0.002]
[1750973720204,0.5,2404.1,2403.3,4.93309]
[1750973720436,0.5,2404.1,2403.6,10.0]
[1750973720621,0.7881,2404.6,2403.4,10.493509]
[1750973720822,0.7881,2404.6,2403.4,0.493509]
[1750973721008,0.7881,2404.6,2403.3,23.609096]
[1750973721214,0.7881,2404.6,2403.5,4.644646]
[1750973721410,0.5,2404.2,2403.6,6.778208]
[1750973721610,0.5,2404.2,2403.5,16.195002]
[1750973721812,0.5,2404.2,2403.7,10.0]
[1750973722115,0.5,2404.2,2403.6,3.712332]
[1750973722432,0.5,2404.2,2403.2,10.002]
[1750973722637,0.5,2404.2,2403.3,1.41631825]
[1750973722948,0.7881,2404.6,2403.5,10.0]
[1750973722949,0.5,2404.5,2403.5,10.0]
[1750973723107,0.5,2404.1,2403.4,17.2043466]
[1750973723302,0.7881,2404.6,2403.4,10.0]
[1750973723627,1.246958,2409.1,2403.4,10.0]
[1750973723628,6.50060089,2406.0,2403.7,0.55]
[1750973723941,0.7725,2405.5,2404.6,2.1111]
[1750973724102,0.7725,2405.5,2404.6,4.1585875]
[1750973724302,0.5,2405.4,2404.5,0.55]
[1750973724506,0.5,2405.7,2404.5,0.55]
[1750973724507,0.5,2405.7,2405.1,25.76425]
[1750973724710,2.90530062,2406.9,2405.1,25.76425]
[1750973724711,0.9413242,2406.7,2405.5,10.0]
[1750973724943,0.9413242,2407.0,2405.9,2.96755]
[1750973725103,2.34423037,2407.4,2406.1,4.1560789]
[1750973725104,0.9413242,2406.9,2406.1,4.1560789]
[1750973725307,0.9413242,2406.8,2405.8,3.557769]
[1750973725535,16.88730074,2407.3,2405.0,11.564]
[1750973725536,0.8164,2406.9,2405.0,11.564]
[1750973725716,4.15512289,2406.7,2405.1,0.55]
[1750973725911,0.9413242,2406.8,2405.2,4.15754233]
[1750973725912,0.9413242,2406.6,2405.2,4.15754233]
[1750973726104,0.9413242,2406.6,2405.1,14.15777165]
[1750973726105,0.9413242,2406.5,2405.1,14.15777165]
[1750973726350,4.15585934,2406.3,2405.0,11.1564]
[1750973726653,0.9413242,2406.2,2405.0,1.1564]
[1750973726940,0.9413242,2406.1,2405.1,2.930256]
[1750973727128,10.388,2406.2,2405.1,2.930256]
[1750973727129,0.94576766,2406.0,2405.1,10.0]
[1750973727331,0.8164,2406.1,2405.1,10.0]
[1750973727641,0.94716759,2406.0,2404.1,0.7915]
[1750973727849,4.97255835,2406.1,2404.1,0.7915]
[1750973727850,0.94716759,2405.9,2404.1,0.7915]
[1750973728143,0.94716759,2405.8,2404.5,10.39393684]
[1750973728304,4.97254391,2406.1,2404.6,4.1586766]
[1750973728305,0.94716759,2405.7,2404.6,4.1586766]
[1750973728682,0.94716759,2405.6,2403.9,15.70179868]
[1750973728856,2.34423037,2406.0,2403.7,0.002]
[1750973728857,0.94716759,2405.5,2404.0,1.60186799]
[1750973729018,0.94716759,2405.4,2404.1,4.15955761]
[1750973729206,4.15700802,2405.6,2404.1,10.0]
[1750973729412,4.15754767,2405.3,2404.0,10.0]
[1750973729649,0.94878241,2405.2,2404.2,10.0]
[1750973729950,4.15767106,2405.2,2404.3,3.0351]
[1750973730149,2.34423037,2405.9,2403.8,4.16001694]
[1750973730150,0.7541,2405.0,2403.8,10.0]
[1750973730307,0.7541,2405.0,2403.8,2.9321]
[1750973730507,10.388,2404.9,2403.7,0.002]
[1750973730709,4.15919866,2404.4,2403.7,0.002]
[1750973731010,4.15954182,2404.2,2403.7,0.002]
[1750973731411,4.15959339,2404.1,2403.7,0.002]
[1750973731624,4.15946353,2404.2,2403.7,0.002]
[1750973731919,4.15834996,2404.8,2403.7,0.002]
[1750973732246,4.15932939,2404.3,2403.7,0.002]
[1750973732550,4.15939544,2404.2,2403.7,0.002]
[1750973732844,4.15956373,2404.1,2403.7,0.002]
[1750973733407,4.16007987,2403.8,2403.7,0.002]
[1750973733613,4.16007987,2403.8,2403.2,0.002]
[1750973733614,4.1607749,2403.4,2403.2,0.002]
[1750973733824,10.391,2403.8,2403.2,0.002]
[1750973733825,4.16094536,2403.3,2403.2,0.002]
[1750973734047,4.97394536,2403.3,2403.2,0.002]
[1750973734435,4.16186132,2402.8,2401.9,10.0]
[1750973734637,0.813,2403.3,2401.5,0.002]
[1750973734638,4.16282544,2402.3,2401.5,0.002]
[1750973734835,10.391,2402.7,2401.5,0.002]
[1750973734836,11.445,2402.4,2401.5,0.002]
[1750973735050,4.16339182,2401.9,2401.5,0.002]
[1750973735249,4.16327028,2402.0,2401.5,0.002]
[1750973735550,10.394,2402.5,2401.5,0.002]
[1750973735750,4.94852148,2402.6,2401.5,0.002]
[1750973735751,0.7863,2402.6,2401.5,0.002]
[1750973735959,0.7863,2402.6,2401.6,4.16371826]
[1750973736173,0.7863,2402.6,2401.5,0.002]
[1750973736174,0.7863,2402.6,2401.7,0.41657183]
[1750973736332,0.7863,2402.6,2401.5,0.002]
[1750973736722,0.7863,2402.6,2401.7,0.55]
[1750973736922,0.7863,2402.6,2401.6,4.16389073]
[1750973736923,10.394,2403.3,2401.9,5.1807]
[1750973737159,10.394,2403.4,2402.2,4.16274512]
[1750973737364,10.394,2403.4,2401.8,19.995768]
[1750973737561,10.394,2403.4,2402.1,4.16302007]
[1750973737724,0.7554,2403.3,2402.0,7.262774]
[1750973737928,0.7554,2403.3,2400.1,0.7519]
[1750973737929,40.0,2403.2,2400.1,0.7519]
[1750973738139,40.0,2403.2,2399.1,20.74268889]
[1750973738140,10.7554,2403.3,2399.1,20.74268889]
[1750973738141,10.7554,2403.3,2399.1,10.0]
[1750973738142,0.7802,2402.4,2399.1,10.0]
[1750973738340,0.7802,2400.6,2399.3,4.067525]
[1750973738524,0.7802,2400.6,2399.2,35.71425]
[1750973738858,0.7802,2400.6,2399.0,0.7519]
[1750973738859,0.7802,2400.6,2399.6,10.0]
[1750973739060,0.7802,2400.6,2399.7,1.0]
[1750973739259,10.396,2401.1,2399.7,1.0]
[1750973739260,11.2135,2401.1,2399.7,1.0]
[1750973739470,11.2135,2401.1,2399.7,10.57034721]
[1750973739675,11.2135,2401.1,2400.2,4.16617251]
[1750973739869,11.2135,2401.1,2400.1,4.1663584]
[1750973739870,0.8175,2401.1,2400.1,4.1663584]
[1750973740178,0.8175,2401.1,2400.0,8.56712]
[1750973740179,0.8175,2401.1,2400.0,2.5323]
[1750973740470,0.8175,2401.1,2399.4,4.16758362]
[1750973740471,4.16493836,2401.0,2399.2,2.98428]
[1750973740771,0.8175,2401.1,2399.2,0.35546272]
[1750973740772,0.49824384,2400.9,2399.2,0.35546272]
[1750973740957,4.16565439,2400.6,2398.4,10.774]
[1750973741140,0.812,2400.4,2398.6,10.0]
[1750973741467,10.812,2400.4,2398.0,12.871834]
[1750973741759,10.812,2400.4,2397.7,10.0]
[1750973741760,0.812,2399.7,2397.7,10.0]
[1750973741926,4.16835758,2399.1,2397.8,10.0]
[1750973742127,11.559,2399.1,2397.9,1.32820569]
[1750973742348,11.559,2399.1,2397.9,0.29836881]
[1750973742545,21.949,2399.2,2397.9,4.46864932]
[1750973742748,10.4,2399.2,2398.0,18.09948678]
[1750973742927,0.7689,2399.6,2398.3,10.0]
[1750973743131,0.7689,2399.6,2397.9,0.29836881]
[1750973743360,11.544,2399.8,2397.9,0.29836881]
[1750973743361,4.16870183,2398.9,2397.9,0.29836881]
[1750973743538,4.16896388,2398.7,2397.9,0.29836881]
[1750973743740,11.592,2398.7,2397.9,0.29836881]
[1750973744062,0.7682,2398.6,2397.9,0.29836881]
[1750973744260,11.579,2398.5,2397.9,0.29836881]
[1750973744432,11.579,2398.5,2396.0,0.7975]
[1750973744433,30.0,2397.9,2396.0,0.51]
[1750973744633,4.56220019,2396.3,2396.2,0.30068916]
[1750973744864,4.17327435,2396.2,2395.4,1.23330241]
[1750973745130,22.054,2396.3,2395.4,1.18330241]
[1750973745131,4.17404243,2395.8,2395.4,1.18330241]
[1750973745337,0.2175,2396.0,2395.4,1.18330241]
[1750973745542,4.17449384,2395.5,2395.4,1.18330241]
[1750973745863,12.4532,2395.5,2395.4,1.18330241]
[1750973746240,12.4532,2395.5,2393.5,0.7975]
[1750973746444,0.7682,2395.5,2394.0,4.1769926]
[1750973746633,0.2175,2396.0,2395.0,25.71425]
[1750973746839,0.2175,2396.0,2395.9,24.2791549]
[1750973747035,0.6033,2398.1,2396.4,0.55]
[1750973747234,0.6033,2398.1,2396.0,3.42791549]
[1750973747436,0.7682,2399.2,2397.2,0.55]
[1750973747637,0.7682,2399.2,2398.6,4.278]
[1750973747872,0.9313731,2399.8,2398.8,10.7975]
[1750973748164,2.34423037,2400.1,2398.8,10.7975]
[1750973748165,2.34423037,2400.5,2400.1,10.55]
[1750973748365,2.34423037,2400.6,2400.2,10.0]
[1750973748663,2.34423037,2400.8,2399.7,4.16704812]
[1750973748851,0.7682,2401.3,2399.1,4.16807461]
[1750973748852,1.69930974,2401.3,2399.3,10.0]
[1750973749061,1.69930974,2401.3,2399.5,4.16739176]
[1750973749062,4.16459806,2401.2,2399.5,4.16739176]
[1750973749240,4.93264252,2401.3,2399.4,14.16770616]
[1750973749584,4.93264252,2401.3,2398.5,6.17553122]
[1750973749585,2.34423037,2402.1,2400.0,25.71425]
[1750973749736,5.09382543,2403.1,2400.6,35.71425]
[1750973749737,2.34423037,2402.8,2400.6,35.71425]
[1750973749941,0.8075,2401.9,2400.8,23.85685]
[1750973750240,0.8075,2401.9,2399.2,10.415]
[1750973750241,16.95701015,2401.9,2400.1,10.0]
[1750973750442,25.70925,2401.8,2400.4,10.0]
[1750973750835,29.8727988,2401.8,2400.1,10.0]
[1750973751029,25.70925,2401.8,2400.1,10.0]
[1750973751234,0.55,2401.6,2399.3,10.0]
[1750973751541,10.414,2401.7,2397.7,0.8002]
[1750973751542,4.16771317,2399.4,2397.7,0.8002]
[1750973751746,25.70925,2399.6,2397.8,3.575138]
[1750973751747,12.019,2399.5,2397.8,3.575138]
[1750973751933,16.18654208,2399.5,2398.2,10.0]
[1750973752135,10.414,2399.9,2398.2,10.0]
[1750973752365,10.414,2399.9,2398.5,10.0]
[1750973752755,10.414,2399.9,2398.7,10.0]
[1750973752935,10.414,2399.9,2398.8,2.1116]
[1750973753136,10.414,2399.9,2398.7,20.0]
[1750973753361,0.8075,2400.6,2399.0,10.0]
[1750973753563,0.8075,2400.6,2399.1,2.0]
[1750973753775,0.8075,2400.6,2399.2,14.16805601]
[1750973753971,0.8075,2400.6,2399.5,19.68352]
[1750973754158,0.8075,2400.6,2399.3,14.16788229]
[1750973754352,0.7522,2401.3,2399.8,4.16701391]
[1750973754570,0.7522,2401.9,2400.1,16.725351]
[1750973754772,0.7522,2401.9,2400.7,4.16545174]
[1750973754974,2.46111146,2402.5,2400.3,0.7932]
[1750973755184,2.46111146,2402.5,2400.4,11.07932]
[1750973755471,0.55,2402.0,2400.4,1.07932]
[1750973755769,10.55,2402.0,2400.0,10.0]
[1750973755945,4.163544,2401.8,2400.0,10.0]
[1750973756149,4.1641646,2401.5,2400.0,10.0]
[1750973756353,4.16419906,2401.5,2400.1,1.09167014]
[1750973756553,4.16373324,2401.7,2400.0,10.0]
[1750973756753,11.96,2402.2,2400.2,10.0]
[1750973756956,11.96,2402.2,2400.2,16.495]
[1750973756957,4.16408852,2401.5,2400.2,16.495]
[1750973757152,10.55,2402.1,2400.2,10.0]
[1750973757357,10.55,2402.1,2399.9,0.91670139]
[1750973757358,4.16452361,2401.3,2399.9,0.91670139]
[1750973757551,4.16319733,2402.0,2400.0,1.09167014]
[1750973757552,0.8228,2401.2,2400.0,1.09167014]
[1750973757781,0.8228,2401.2,2399.3,10.0]
[1750973757782,4.16546592,2400.7,2399.2,14.16794004]
[1750973757981,0.55,2401.0,2399.1,2.0]
[1750973758276,4.16604832,2400.4,2398.5,16.24849188]
[1750973758452,4.16642982,2400.2,2398.5,12.079254]
[1750973758652,4.16645737,2400.2,2398.6,4.16893486]
[1750973758864,0.55,2400.7,2399.1,10.0]
[1750973758865,22.367,2400.7,2399.1,10.0]
[1750973759071,4.16562526,2400.6,2399.1,10.0]
[1750973759298,4.16562526,2400.6,2399.0,4.16837583]
[1750973759299,4.95291136,2399.4,2397.8,0.7657]
[1750973759467,4.16793341,2399.3,2398.0,10.0]
[1750973759654,10.963,2399.3,2397.3,0.51]
[1750973759856,10.0,2399.1,2397.0,0.7657]
[1750973760086,4.16897774,2398.7,2397.2,4.17141021]
[1750973760291,16.12316776,2399.2,2397.4,4.17102386]
[1750973760292,4.16851661,2399.0,2397.4,4.17102386]
[1750973760488,14.58100676,2399.3,2397.8,4.17046608]
[1750973760651,4.16800676,2399.3,2397.8,4.17046608]
[1750973760982,4.1681391,2399.2,2397.6,4.17078407]
[1750973761186,4.16833938,2399.1,2397.7,4.17064824]
[1750973761355,4.16833938,2399.1,2397.5,0.41710239]
[1750973761356,0.7852,2399.4,2398.3,4.16954898]
[1750973761555,0.7852,2399.4,2398.1,10.0]
[1750973761858,0.7852,2399.4,2398.2,10.0]
[1750973762180,0.7852,2399.4,2398.3,10.0]
[1750973762380,0.7852,2399.4,2398.0,10.0]
[1750973762550,0.7507,2400.0,2398.4,4.16944629]
[1750973762753,0.7507,2400.0,2399.4,4.16768941]
[1750973762956,4.16521295,2400.9,2398.6,10.55]
[1750973763199,0.001,2399.7,2398.8,10.0]
[1750973763354,0.001,2399.7,2399.1,13.94112]
[1750973763554,0.001,2399.7,2399.5,4.16749515]
[1750973763792,0.001,2399.7,2399.6,4.16736122]
[1750973764190,0.001,2399.7,2399.6,14.16736122]
[1750973764407,4.16770859,2399.4,2397.1,0.3049718]
[1750973764696,0.8227,2398.0,2396.0,0.7844]
[1750973764871,0.8227,2398.0,2395.4,0.7844]
[1750973764872,0.55,2397.7,2395.4,0.7844]
[1750973765073,4.1708375,2397.6,2395.4,4.95904941]
[1750973765268,10.8227,2397.8,2395.7,4.17414534]
[1750973765570,0.8227,2397.8,2396.0,10.0]
[1750973765769,4.99319734,2397.8,2396.5,10.0]
[1750973766077,0.8227,2397.8,2396.4,12.36464]
[1750973766299,0.8227,2397.8,2396.3,4.17304842]
[1750973766604,0.8227,2397.8,2396.2,10.644753]
[1750973766898,0.8227,2399.2,2398.6,4.1689797]
[1750973767065,14.58163101,2400.1,2397.4,4.72118545]
[1750973767066,0.8227,2399.8,2398.1,44.16996789]
[1750973767263,0.8227,2399.8,2398.2,14.01332424]
[1750973767505,0.8227,2399.8,2397.8,0.55]
[1750973767698,4.16819154,2399.7,2398.3,10.0]
[1750973767870,4.16782927,2399.4,2397.7,3.889]
[1750973768074,4.16782927,2399.4,2398.1,10.0]
[1750973768370,0.551,2399.7,2397.2,0.7844]
[1750973768702,0.551,2399.7,2396.0,6.24204454]
[1750973768703,5.6706,2398.6,2396.0,4.17355481]
[1750973768879,10.0,2398.8,2396.0,2.0]
[1750973768880,4.17098744,2397.6,2396.0,2.0]
[1750973769073,0.7806,2398.0,2396.0,10.0]
[1750973769403,0.7806,2398.0,2396.0,2.068701]
[1750973769578,0.55,2397.5,2395.5,0.51]
[1750973769897,0.8305,2397.6,2395.3,0.787]
[1750973770074,0.8305,2397.6,2395.4,4.442025]
[1750973770400,0.8305,2397.6,2397.0,4.1718432]
[1750973770573,0.8305,2398.1,2397.3,4.17122523]
[1750973770773,0.8305,2398.9,2397.4,7.160343]
[1750973770986,0.8305,2398.9,2397.7,4.17055039]
[1750973771407,0.8305,2399.6,2398.0,6.807743]
[1750973771580,0.8305,2399.6,2398.1,1.6807743]
[1750973771769,0.8305,2399.6,2398.3,10.0]
[1750973771973,0.8305,2399.6,2398.7,4.16882574]
[1750973772402,0.8305,2399.6,2398.6,10.0]
[1750973772675,0.8305,2399.6,2398.4,4.16928546]
[1750973772882,0.8305,2399.6,2398.6,10.0]
[1750973773080,0.8305,2399.6,2398.5,0.41692855]
[1750973773279,0.8305,2399.6,2397.8,10.0]
[1750973773492,0.8305,2399.6,2398.2,4.16967956]
[1750973774015,0.8305,2399.6,2397.4,4.17118545]
[1750973774016,4.16822361,2399.2,2397.1,10.419]
[1750973774200,5.54892975,2399.1,2397.3,10.0]
[1750973774400,4.16911839,2398.6,2397.0,4.17187637]
[1750973774580,4.16911839,2398.6,2397.2,10.0]
[1750973775202,12.175,2398.9,2396.8,14.17217346]
[1750973775510,11.2497,2399.1,2397.2,14.17149565]
[1750973775717,0.8307,2399.1,2397.3,1.41714957]
[1750973776012,0.8307,2399.1,2396.9,4.17205557]
[1750973776183,4.99896962,2399.1,2397.6,4.17073438]
[1750973776393,0.8307,2399.1,2398.0,4.17001634]
[1750973776610,0.8307,2399.1,2398.1,4.16996756]
[1750973776799,0.8307,2399.1,2397.7,10.0]
[1750973777010,0.8307,2399.1,2398.5,4.16914652]
[1750973777192,0.8307,2399.1,2398.1,10.0]
[1750973777521,0.8307,2399.1,2398.4,4.16932517]
[1750973777938,0.8307,2399.1,2398.5,4.16927246]
[1750973778122,10.419,2399.4,2398.0,14.17014178]
[1750973778422,10.419,2399.4,2398.5,4.16917942]
[1750973778620,10.419,2399.4,2398.6,4.16909701]
[1750973779230,0.7835,2399.7,2398.7,4.16890139]
[1750973779401,0.7835,2399.7,2398.6,10.0]
[1750973779731,0.7835,2399.7,2398.9,0.55]
[1750973779732,0.001,2399.7,2398.9,0.55]
[1750973779935,0.001,2399.7,2399.6,6.79498222]
[1750973780107,0.001,2399.7,2399.6,16.79498222]
[1750973780434,0.001,2399.7,2399.6,17.34498222]
[1750973780639,10.419,2401.5,2400.6,4.16550527]
[1750973780844,0.8086,2401.6,2400.7,4.16541887]
[1750973781136,0.8086,2401.6,2400.8,4.16527824]
[1750973781502,0.8086,2401.6,2400.8,6.32610124]
[1750973781819,0.8086,2401.6,2400.8,6.21443243]
[1750973782129,0.8086,2402.2,2400.8,23.39719824]
[1750973782561,0.8086,2402.2,2401.6,4.16385481]
[1750973782702,0.8086,2402.7,2401.4,0.55]
[1750973782901,0.8086,2402.7,2401.8,4.163412]
[1750973783123,0.8086,2402.7,2401.2,0.55]
[1750973783124,0.8086,2402.7,2401.5,4.16402852]
[1750973783406,0.8086,2403.4,2402.5,4.16233002]
[1750973783603,0.8086,2403.4,2402.5,4.16219176]
[1750973783858,4.15950157,2404.2,2402.5,4.16225752]
[1750973784156,4.15968962,2404.1,2402.7,4.16192055]
[1750973784452,4.96786226,2404.3,2402.2,0.55]
[1750973784659,4.96786226,2404.3,2402.0,10.0]
[1750973784660,0.8086,2404.9,2403.0,4.16146483]
[1750973784819,0.8086,2404.9,2403.6,0.55]
[1750973785026,1.7549331,2406.2,2404.3,0.55]
[1750973785357,0.8086,2406.2,2405.3,4.15735046]
[1750973785520,0.001,2406.7,2405.1,18.494404]
[1750973785521,0.8096,2406.7,2405.1,4.97312572]
[1750973785732,0.8096,2406.7,2404.6,4.15857849]
[1750973785733,0.8096,2406.7,2404.6,10.0]
[1750973785952,0.8096,2406.7,2404.5,0.8491]
[1750973785953,0.8096,2406.7,2405.1,10.0]
[1750973786151,0.8096,2406.7,2405.0,4.255559]
[1750973786152,0.8096,2406.7,2404.8,0.55]
[1750973786318,0.8096,2406.7,2405.6,4.15695159]
[1750973786519,0.8096,2406.7,2405.3,10.0]
[1750973786727,0.8096,2406.7,2404.6,14.15858148]
[1750973786913,10.0,2406.4,2404.5,14.1588126]
[1750973787145,10.0,2406.4,2404.2,10.414]
[1750973787146,4.15596673,2406.2,2404.4,14.15898212]
[1750973787344,4.15642009,2406.0,2404.5,4.15883949]
[1750973787525,1.12166,2406.6,2404.6,10.0]
[1750973787526,10.0,2406.5,2404.6,10.0]
[1750973787731,1.12166,2406.6,2405.3,4.157328]
[1750973787942,1.12166,2406.6,2405.1,4.15783035]
[1750973787943,1.12166,2406.6,2405.5,4.1570834]
[1750973788118,0.8096,2406.7,2405.4,9.726035]
[1750973788318,0.8096,2406.7,2405.3,4.56]
[1750973788640,1.0404237,2406.7,2405.4,3.56]
[1750973788850,1.0404237,2406.7,2405.4,4.15729971]
[1750973789053,1.0404237,2406.7,2404.6,4.15864734]
[1750973789255,0.8567,2405.9,2404.4,20.0]
[1750973789565,4.15662149,2405.8,2404.4,12.41590827]
[1750973789867,1.0875237,2405.9,2404.8,10.0]
[1750973790062,1.0875237,2405.9,2404.6,10.0]
[1750973790247,1.0875237,2405.9,2404.9,4.15806576]
[1750973790446,1.0875237,2405.9,2405.1,4.15781421]
[1750973790646,1.0875237,2405.9,2405.0,4.15797617]
[1750973790831,1.0875237,2405.9,2405.0,14.5403]
[1750973791035,1.0875237,2405.9,2405.0,4.5403]
[1750973791367,1.0875237,2405.9,2405.0,2.113363]
[1750973791573,1.0875237,2405.9,2404.9,10.0]
[1750973791876,0.2308237,2405.9,2405.0,13.333266]
[1750973792039,0.2308237,2405.9,2404.9,10.0]
[1750973792378,0.2308237,2405.9,2405.3,4.15747382]
[1750973792561,0.2308237,2405.9,2405.4,18.190722]
[1750973792738,0.2308237,2405.9,2405.3,0.8665]
[1750973792940,0.2308237,2405.9,2405.8,4.15662149]
[1750973793334,0.2308237,2405.9,2405.4,4.1572416]
[1750973793335,0.2308237,2405.9,2405.4,10.0]
[1750973793535,0.2308237,2405.9,2405.8,6.99011049]
[1750973793763,0.2308237,2405.9,2405.8,23.69584149]
[1750973793970,0.2308237,2405.9,2405.8,24.24584149]
[1750973794680,0.2308237,2405.9,2405.8,44.70662149]
[1750973795177,0.2308237,2405.9,2405.3,0.8665]
[1750973795178,0.2308237,2405.9,2405.0,10.397]
[1750973795378,0.2308237,2405.9,2405.0,14.55495394]
[1750973795579,0.2308237,2405.9,2405.2,10.0]
[1750973795982,0.2308237,2405.9,2405.5,4.15712212]
[1750973796281,0.2308237,2405.9,2405.8,4.15662149]
[1750973796480,0.2308237,2405.9,2405.8,14.43888149]
[1750973796682,0.2308237,2405.9,2405.8,7.44451649]
[1750973796886,0.2308237,2405.9,2405.8,9.80414566]
[1750973797075,0.2308237,2405.9,2405.8,21.51676966]
[1750973797272,0.001,2406.7,2405.9,38.828333]
[1750973797472,0.001,2406.7,2406.6,4.15523975]
[1750973798063,0.001,2406.7,2406.6,33.02360075]
[1750973798264,0.001,2406.7,2406.6,37.03692499]
[1750973798560,0.001,2406.7,2406.6,37.58692499]
[1750973799079,0.001,2406.9,2406.8,4.70489446]
[1750973799275,0.001,2407.5,2407.4,6.76053593]
[1750973799599,0.001,2407.5,2406.7,4.1550182]
[1750973799900,0.001,2407.5,2406.8,10.0]
[1750973800688,0.001,2407.5,2406.8,14.1548783]
[1750973801193,0.001,2407.5,2406.9,4.15470985]
[1750973801428,0.001,2407.5,2406.9,4.15460795]
[1750973801623,0.001,2407.5,2407.1,4.15425371]
[1750973801912,0.001,2407.5,2407.4,12.28357893]
[1750973802067,0.001,2407.5,2407.4,30.72595893]
[1750973802269,0.2226765,2408.2,2408.1,4.15265146]
[1750973802467,0.2226765,2408.2,2408.1,37.87650346]
[1750973802809,0.2226765,2408.2,2408.1,21.823]
[1750973803106,0.2226765,2408.2,2408.1,10.0]
[1750973803671,0.2226765,2408.2,2407.9,11.818]
[1750973803916,0.2226765,2408.2,2407.4,10.0]
[1750973804123,0.2226765,2408.2,2407.2,14.54110537]